bitfinex-derivatives/quotes_SOLF0:USTF0_20260213
["timestamp","ask_amount","ask_price","bid_price","bid_amount"]
[1770990198261,4.0091919,80.279,80.239,11.2247]
[1770990198456,4.0091919,80.293,80.245,11.2239]
[1770990199453,4.0091919,80.283,80.238,11.225]
[1770990199657,4.0091919,80.283,80.234,4.39898017]
[1770990199860,119.12,80.296,80.234,4.39898017]
[1770990200060,11.2173,80.293,80.25,11.2232]
[1770990200257,11.2173,80.293,80.25,15.62218017]
[1770990200655,4.0091919,80.297,80.255,11.2225]
[1770990202258,11.2172,80.294,80.255,11.2225]
[1770990202460,4.0091919,80.297,80.255,11.2225]
[1770990203158,4.0091919,80.297,80.261,11.2217]
[1770990205059,3.57663248,80.29,80.251,4.39898017]
[1770990205869,3.57663248,80.28,80.235,4.39898017]
[1770990206263,4.0091919,80.279,80.235,4.39898017]
[1770990206670,3.57663248,80.3,80.251,4.39898017]
[1770990206865,4.0091919,80.323,80.281,11.2189]
[1770990207265,4.0091919,80.323,80.269,4.39898017]
[1770990207770,4.0091919,80.323,80.28,11.219]
[1770990208467,4.0091919,80.323,80.288,11.218]
[1770990208671,4.0091919,80.323,80.269,4.39898017]
[1770990209172,9.57744238,80.33,80.269,4.39898017]
[1770990209173,4.0091919,80.321,80.269,4.39898017]
[1770990209771,15.2226919,80.321,80.283,11.2186]
[1770990209972,4.0091919,80.32,80.283,11.2186]
[1770990210271,9.57744238,80.33,80.269,15.61958017]
[1770990210272,4.0091919,80.311,80.269,15.61958017]
[1770990210472,4.0091919,80.311,80.269,4.39898017]
[1770990211276,4.0091919,80.311,80.241,4.18619265]
[1770990212776,4.0091919,80.311,80.258,4.18619265]
[1770990213376,11.2159,80.303,80.259,11.222]
[1770990213673,11.2159,80.303,80.258,4.18619265]
[1770990213674,4.40260407,80.317,80.258,4.18619265]
[1770990214677,11.2123,80.329,80.274,4.18619265]
[1770990214873,4.40260407,80.331,80.274,4.18619265]
[1770990215179,4.40260407,80.329,80.286,11.2183]
[1770990216168,4.0397418,80.326,80.274,4.18619265]
[1770990216481,4.0397418,80.326,80.246,4.10472606]
[1770990216776,4.0397418,80.314,80.246,4.10472606]
[1770990217876,15.2557418,80.303,80.26,11.2218]
[1770990218078,4.0397418,80.303,80.246,4.10472606]
[1770990218478,4.0397418,80.303,80.263,11.2215]
[1770990218783,4.0397418,80.303,80.246,4.10472606]
[1770990219882,4.0397418,80.301,80.262,11.2216]
[1770990220483,15.2559418,80.301,80.262,11.2216]
[1770990224181,4.0397418,80.3,80.262,11.2216]
[1770990224389,4.0397418,80.298,80.262,11.2216]
[1770990224578,4.0397418,80.298,80.255,11.2225]
[1770990225287,4.0397418,80.293,80.261,11.2217]
[1770990225488,4.0397418,80.293,80.246,4.10472606]
[1770990225683,4.0397418,80.293,80.212,4.10472606]
[1770990225984,4.0397418,80.273,80.231,11.226]
[1770990226386,11.54930087,80.327,80.218,11.2278]
[1770990226387,15.2616418,80.26,80.218,11.2278]
[1770990226682,15.2616418,80.26,80.191,22.463]
[1770990226683,4.0397418,80.272,80.219,4.10472606]
[1770990227778,11.2211,80.267,80.221,4.10472606]
[1770990228078,4.0397418,80.266,80.192,4.10472606]
[1770990228276,4.0397418,80.266,80.221,11.2273]
[1770990228477,4.0397418,80.266,80.222,4.10472606]
[1770990229784,11.2214,80.264,80.224,11.2269]
[1770990230692,4.0397418,80.279,80.224,4.10472606]
[1770990231079,11.218,80.289,80.244,4.10472606]
[1770990232392,4.0397418,80.296,80.244,4.10472606]
[1770990232786,4.0397418,80.283,80.244,4.10472606]
[1770990233088,4.0397418,80.283,80.241,11.2245]
[1770990233482,4.0397418,80.281,80.234,11.2255]
[1770990233683,4.0397418,80.281,80.23,4.10472606]
[1770990234792,4.0397418,80.281,80.237,11.2251]
[1770990235194,11.2192,80.28,80.237,11.2251]
[1770990235796,11.2201,80.274,80.23,15.33082606]
[1770990235988,11.2201,80.274,80.231,4.10472606]
[1770990236695,4.0397418,80.279,80.24,11.2246]
[1770990237599,4.0397418,80.279,80.214,15.45279932]
[1770990237600,11.2198,80.276,80.234,15.33032606]
[1770990239501,4.0397418,80.279,80.234,4.10472606]
[1770990240002,11.2195,80.277,80.234,4.10472606]
[1770990240593,11.2195,80.277,80.236,11.2252]
[1770990240798,11.2195,80.277,80.2,9.57948117]
[1770990240799,4.0397418,80.279,80.237,4.23691576]
[1770990241198,11.2184,80.286,80.237,4.23691576]
[1770990241696,11.2184,80.286,80.242,11.2244]
[1770990241901,11.2184,80.286,80.243,4.23691576]
[1770990242303,4.29604745,80.278,80.232,4.23691576]
[1770990243403,11.2202,80.273,80.232,4.23691576]
[1770990244107,4.29604745,80.278,80.238,11.2249]
[1770990244502,4.29604745,80.299,80.232,4.23691576]
[1770990245400,15.51494745,80.282,80.244,11.2241]
[1770990245800,15.51524745,80.28,80.236,11.2251]
[1770990246302,4.29604745,80.279,80.236,11.2251]
[1770990246803,11.2205,80.271,80.232,4.23691576]
[1770990247005,4.29604745,80.27,80.232,4.23691576]
[1770990247807,11.2208,80.269,80.225,11.2268]
[1770990248108,119.4,80.302,80.225,11.2268]
[1770990248109,4.29604745,80.268,80.225,11.2268]
[1770990248695,4.29604745,80.262,80.225,11.2268]
[1770990250704,11.2221,80.259,80.225,11.2268]
[1770990251208,3.57994987,80.26,80.225,11.2268]
[1770990251705,14.80194987,80.26,80.225,11.2268]
[1770990253396,11.223,80.252,80.211,11.2288]
[1770990253603,3.57994987,80.25,80.211,11.2288]
[1770990254212,11.2229,80.254,80.211,11.2288]
[1770990254412,11.2229,80.254,80.212,4.23691576]
[1770990255113,3.57994987,80.24,80.198,4.23691576]
[1770990255505,3.57994987,80.25,80.198,4.23691576]
[1770990256199,11.2251,80.237,80.198,4.23691576]
[1770990256400,3.57994987,80.23,80.181,4.23691576]
[1770990256605,7.87599732,80.23,80.181,4.23691576]
[1770990256808,3.57994987,80.22,80.181,4.23691576]
[1770990257208,4.29604745,80.229,80.181,4.23691576]
[1770990257802,11.2269,80.225,80.185,11.2324]
[1770990258012,3.57994987,80.22,80.185,11.2324]
[1770990258206,3.57994987,80.22,80.181,4.23691576]
[1770990258406,11.2278,80.219,80.181,4.23691576]
[1770990259209,11.2278,80.219,80.182,15.46971576]
[1770990259416,11.2267,80.226,80.182,15.46971576]
[1770990259711,4.29604745,80.229,80.182,15.46971576]
[1770990259912,3.57994987,80.22,80.182,15.46971576]
[1770990260813,14.80744987,80.22,80.182,15.46971576]
[1770990261907,11.2283,80.215,80.182,4.23691576]
[1770990262116,4.29604745,80.209,80.169,4.23691576]
[1770990262317,3.57994987,80.2,80.169,4.23691576]
[1770990262803,3.57994987,80.19,80.154,4.23691576]
[1770990263209,4.29604745,80.189,80.15,11.2373]
[1770990263714,11.2321,80.188,80.142,15.47521576]
[1770990264114,4.29604745,80.187,80.142,15.47521576]
[1770990264622,7.87599732,80.18,80.135,11.2394]
[1770990264917,4.29604745,80.179,80.135,11.2394]
[1770990265316,3.57994987,80.19,80.142,4.23691576]
[1770990265517,4.29604745,80.195,80.142,4.23691576]
[1770990265822,118.46,80.226,80.142,4.23691576]
[1770990265823,3.57994987,80.19,80.142,4.23691576]
[1770990266321,7.87599732,80.19,80.142,4.23691576]
[1770990267021,118.4,80.226,80.113,157.86]
[1770990267022,3.57994987,80.17,80.129,4.23691576]
[1770990267818,4.29604745,80.169,80.129,4.23691576]
[1770990268816,4.29604745,80.169,80.116,4.23691576]
[1770990269017,4.29604745,80.159,80.116,4.23691576]
[1770990269324,3.57994987,80.15,80.101,4.23691576]
[1770990269815,4.29604745,80.149,80.103,11.2438]
[1770990270017,3.57994987,80.14,80.101,4.23691576]
[1770990270218,4.29604745,80.149,80.101,4.23691576]
[1770990270722,3.57994987,80.16,80.111,4.20699529]
[1770990270919,3.57994987,80.17,80.121,4.20699529]
[1770990271317,3.57994987,80.17,80.129,11.2402]
[1770990271822,11.2343,80.172,80.13,3.57994987]
[1770990273219,7.70702556,80.18,80.137,11.239]
[1770990273413,4.12707569,80.18,80.14,7.78694516]
[1770990273618,3.57994987,80.19,80.141,4.20699529]
[1770990274818,4.12707569,80.194,80.149,4.20699529]
[1770990275222,3.57994987,80.19,80.149,4.20699529]
[1770990275422,3.57994987,80.18,80.135,4.20699529]
[1770990275622,4.12707569,80.179,80.135,4.20699529]
[1770990276524,4.12707569,80.179,80.14,3.57994987]
[1770990276721,4.12707569,80.179,80.135,4.20699529]
[1770990277119,4.40444927,80.178,80.136,11.2392]
[1770990277424,4.40444927,80.178,80.107,156.98]
[1770990277425,4.40444927,80.169,80.12,3.57994987]
[1770990277623,4.40444927,80.159,80.106,4.14215328]
[1770990277919,4.40444927,80.174,80.121,4.14215328]
[1770990278322,15.63854927,80.174,80.13,11.2401]
[1770990278925,15.63854927,80.174,80.13,14.82004987]
[1770990279126,15.63854927,80.174,80.13,11.2401]
[1770990279518,15.63854927,80.174,80.13,14.82004987]
[1770990279822,15.63854927,80.174,80.13,11.2401]
[1770990280621,4.40444927,80.173,80.13,11.2401]
[1770990280821,4.40444927,80.159,80.11,3.57994987]
[1770990281029,4.40444927,80.159,80.11,3.58937371]
[1770990281418,11.2352,80.166,80.122,4.14215328]
[1770990281620,4.40444927,80.174,80.13,7.73152699]
[1770990282724,4.40444927,80.174,80.138,11.239]
[1770990283122,4.40444927,80.174,80.13,7.73152699]
[1770990283427,3.58937371,80.17,80.13,4.14215328]
[1770990283629,3.58937371,80.17,80.131,11.2399]
[1770990285027,4.40444927,80.159,80.116,11.242]
[1770990285530,4.40444927,80.156,80.109,11.2431]
[1770990285727,7.99382298,80.15,80.109,11.2431]
[1770990285925,3.58937371,80.16,80.11,7.73152699]
[1770990286130,11.2361,80.159,80.115,11.2421]
[1770990286431,11.2361,80.159,80.116,4.14215328]
[1770990287231,11.2361,80.159,80.087,156.4]
[1770990287232,4.40444927,80.164,80.121,4.14215328]
[1770990287428,11.2349,80.168,80.121,4.14215328]
[1770990287828,11.2349,80.168,80.129,11.2402]
[1770990288829,4.40444927,80.178,80.136,4.14215328]
[1770990288830,11.2339,80.175,80.136,4.14215328]
[1770990289226,11.2339,80.175,80.137,11.2391]
[1770990290821,7.99382298,80.17,80.13,11.24]
[1770990291023,4.40444927,80.17,80.13,11.24]
[1770990291225,7.99382298,80.17,80.13,11.24]
[1770990291425,11.2349,80.168,80.13,11.24]
[1770990291625,4.40444927,80.159,80.116,11.242]
[1770990291835,4.40444927,80.159,80.111,4.14215328]
[1770990292834,4.40444927,80.159,80.122,11.2412]
[1770990294528,11.2362,80.158,80.122,11.2412]
[1770990294735,4.40444927,80.159,80.122,11.2412]
[1770990295335,4.40444927,80.159,80.127,11.2404]
[1770990295531,11.2353,80.165,80.127,11.2404]
[1770990295933,11.2353,80.165,80.111,4.14215328]
[1770990295934,4.40444927,80.169,80.123,11.2411]
[1770990296834,11.50760827,80.219,80.09,22.4914]
[1770990296835,11.2341,80.174,80.131,4.14215328]
[1770990297839,11.2341,80.174,80.132,11.2397]
[1770990298041,11.2348,80.168,80.132,11.2397]
[1770990299840,11.2348,80.168,80.125,11.2408]
[1770990300043,11.2351,80.166,80.12,3.58937371]
[1770990300242,3.58937371,80.15,80.091,4.14215328]
[1770990300442,11.2364,80.157,80.111,4.14215328]
[1770990300741,4.40444927,80.159,80.111,4.14215328]
[1770990301139,4.40444927,80.159,80.112,4.10843943]
[1770990301342,4.03274454,80.169,80.121,4.10843943]
[1770990303250,3.58937371,80.16,80.121,4.10843943]
[1770990305141,11.2353,80.165,80.122,11.2412]
[1770990305341,4.03274454,80.183,80.131,4.10843943]
[1770990305545,4.03274454,80.183,80.141,4.10843943]
[1770990305744,4.03274454,80.199,80.16,3.58937371]
[1770990306551,4.03274454,80.199,80.171,11.2343]
[1770990306755,4.03274454,80.214,80.171,15.34273943]
[1770990309348,3.58937371,80.21,80.171,4.10843943]
[1770990309551,3.58937371,80.18,80.132,4.10843943]
[1770990310558,11.2321,80.188,80.141,4.10843943]
[1770990310853,4.03274454,80.179,80.124,4.10843943]
[1770990311041,11.2339,80.175,80.125,11.2408]
[1770990311453,11.2339,80.175,80.126,4.10843943]
[1770990311651,9.61022067,80.19,80.126,4.10843943]
[1770990311952,4.03274454,80.195,80.121,4.10843943]
[1770990312154,4.03274454,80.189,80.121,4.10843943]
[1770990312349,4.03274454,80.169,80.121,4.10843943]
[1770990312556,4.03274454,80.169,80.101,4.10843943]
[1770990312950,11.2379,80.146,80.103,4.10843943]
[1770990314457,11.2379,80.146,80.065,15.27136403]
[1770990314458,4.03274454,80.143,80.089,4.10843943]
[1770990314651,4.03274454,80.143,80.073,4.10843943]
[1770990315856,4.03274454,80.125,80.078,11.2474]
[1770990316053,4.03274454,80.125,80.072,7.7563198]
[1770990316460,11.2435,80.107,80.072,7.7563198]
[1770990316763,4.03274454,80.106,80.072,7.7563198]
[1770990317153,4.03274454,80.102,80.072,7.7563198]
[1770990317559,4.03274454,80.102,80.072,1.98e-05]
[1770990317866,11.2442,80.101,80.072,1.98e-05]
[1770990318261,4.03274454,80.102,80.072,1.98e-05]
[1770990319774,11.2429,80.11,80.072,1.98e-05]
[1770990319962,4.03274454,80.119,80.072,1.98e-05]
[1770990321565,4.03274454,80.119,80.034,2.17312568]
[1770990321566,4.03274454,80.096,80.041,4.10843943]
[1770990322071,4.03274454,80.111,80.059,4.10843943]
[1770990322370,4.03274454,80.111,80.034,2.17312568]
[1770990322565,4.03274454,80.111,80.035,4.10843943]
[1770990323360,4.03274454,80.111,80.034,2.17312568]
[1770990323361,11.2454,80.093,80.042,4.10843943]
[1770990323566,15.27814454,80.093,80.042,4.10843943]
[1770990323867,4.03274454,80.111,80.055,4.10843943]
[1770990324078,4.03274454,80.111,80.035,4.10843943]
[1770990324671,4.03274454,80.111,80.041,4.10843943]
[1770990324872,4.03274454,80.111,80.046,4.10843943]
[1770990324873,11.245,80.096,80.046,4.10843943]
[1770990326274,11.245,80.096,80.049,4.10843943]
[1770990327177,11.2453,80.093,80.049,4.10843943]
[1770990327470,15.27804454,80.093,80.051,11.2512]
[1770990327672,4.03274454,80.093,80.052,4.10843943]
[1770990327868,11.2432,80.109,80.052,4.10843943]
[1770990328466,11.2416,80.12,80.069,4.10843943]
[1770990328766,4.03274454,80.137,80.069,4.10843943]
[1770990329266,4.03274454,80.129,80.067,4.10843943]
[1770990330365,4.03274454,80.106,80.061,11.2498]
[1770990330667,4.03274454,80.106,80.052,4.10843943]
[1770990331372,11.2453,80.094,80.052,4.10843943]
[1770990332575,4.29573845,80.101,80.053,11.2509]
[1770990333472,11.2446,80.098,80.055,11.2506]
[1770990334374,11.2456,80.092,80.054,3.99385548]
[1770990334773,11.2444,80.1,80.055,3.99385548]
[1770990335270,11.2434,80.107,80.06,3.99385548]
[1770990335471,4.29573845,80.115,80.06,3.99385548]
[1770990336577,11.2443,80.101,80.061,15.32697915]
[1770990337580,4.29573845,80.115,80.061,15.32697915]
[1770990337769,4.29573845,80.115,80.061,4.07727915]
[1770990337974,11.2451,80.095,80.061,4.07727915]
[1770990338181,4.29573845,80.115,80.061,4.07727915]
[1770990339075,3.59421516,80.1,80.061,4.07727915]
[1770990339278,11.2445,80.099,80.061,4.07727915]
[1770990339781,7.69615757,80.1,80.055,4.07727915]
[1770990340277,3.59421516,80.09,80.055,4.07727915]
[1770990340578,4.10194241,80.089,80.047,11.2517]
[1770990341083,4.10194241,80.089,80.051,11.2512]
[1770990343170,11.2452,80.094,80.051,15.32847915]
[1770990343374,7.69697416,80.1,80.05,3.59503175]
[1770990343682,4.10194241,80.089,80.04,3.59503175]
[1770990343978,15.34994241,80.074,80.03,3.59503175]
[1770990344980,4.10194241,80.067,80.023,4.07727915]
[1770990345380,11.2492,80.066,80.023,4.07727915]
[1770990346787,11.2492,80.066,80.024,11.255]
[1770990348588,11.2502,80.059,80.017,11.256]
[1770990349193,4.10194241,80.056,80.017,11.256]
[1770990349388,4.10194241,80.056,80.01,4.07727915]
[1770990350093,4.10194241,80.056,80.013,11.2565]
[1770990351188,15.35254241,80.056,80.014,11.2564]
[1770990351389,4.10194241,80.055,80.014,11.2564]
[1770990352383,11.252,80.046,80.01,4.07727915]
[1770990352592,4.10194241,80.045,80.004,11.2578]
[1770990352894,4.10194241,80.045,79.997,4.07727915]
[1770990353282,4.10194241,80.045,80.01,11.2569]
[1770990353483,4.10194241,80.045,79.997,4.07727915]
[1770990354791,4.10194241,80.042,80.003,11.2579]
[1770990355091,4.10194241,80.042,79.984,6.25153175]
[1770990355395,4.10194241,80.03,79.991,11.2596]
[1770990356492,11.2536,80.035,79.998,4.07727915]
[1770990359699,4.10194241,80.043,79.998,4.07727915]
[1770990359993,4.10194241,80.079,80.015,4.07727915]
[1770990360199,4.10194241,80.079,80.002,4.07727915]
[1770990360400,4.10194241,80.06,80.015,4.07727915]
[1770990360796,4.10956777,80.073,80.015,4.07727915]
[1770990360993,4.10956777,80.073,80.021,4.16304183]
[1770990361199,4.10956777,80.099,80.021,4.16304183]
[1770990361403,11.245,80.096,80.045,4.16304183]
[1770990361899,4.10956777,80.113,80.067,11.2489]
[1770990362095,4.10956777,80.113,80.04,9.63585311]
[1770990362096,4.10956777,80.113,80.045,4.16304183]
[1770990362704,4.10956777,80.106,80.045,4.16304183]
[1770990363291,4.10956777,80.086,80.036,11.2532]
[1770990363999,4.10956777,80.084,80.043,11.2523]
[1770990365797,4.10956777,80.104,80.053,4.16304183]
[1770990366392,4.10956777,80.104,80.057,4.16304183]
[1770990367201,15.35346777,80.104,80.06,11.2498]
[1770990367400,4.10956777,80.103,80.057,4.16304183]
[1770990367805,4.10956777,80.103,80.058,11.2502]
[1770990368107,4.10956777,80.103,80.057,4.16304183]
[1770990368305,4.10956777,80.103,80.041,4.16304183]
[1770990369800,11.2451,80.095,80.048,11.2516]
[1770990370000,11.2451,80.095,80.048,15.41464183]
[1770990370202,4.10956777,80.117,80.049,4.16304183]
[1770990370903,4.10956777,80.117,80.061,4.16304183]
[1770990372099,4.10956777,80.117,80.072,4.16304183]
[1770990372302,9.63585311,80.15,80.072,4.16304183]
[1770990372303,4.10956777,80.149,80.072,4.16304183]
[1770990372907,11.2407,80.127,80.082,4.16304183]
[1770990373508,11.2407,80.127,80.083,11.2467]
[1770990373712,11.238,80.145,80.084,4.16304183]
[1770990374204,4.10956777,80.144,80.084,4.16304183]
[1770990374411,4.10956777,80.139,80.061,4.16304183]
[1770990375004,4.10956777,80.127,80.084,11.2466]
[1770990375212,4.10956777,80.142,80.085,4.16304183]
[1770990376404,4.10956777,80.142,80.096,4.16304183]
[1770990377318,11.2387,80.14,80.096,4.16304183]
[1770990377507,4.10956777,80.142,80.096,4.16304183]
[1770990377708,4.10956777,80.142,80.082,4.16304183]
[1770990378413,4.10956777,80.129,80.078,11.2473]
[1770990379017,15.35126777,80.12,80.078,11.2473]
[1770990380716,11.2419,80.118,80.071,15.41144183]
[1770990381125,11.2419,80.118,80.071,4.16304183]
[1770990381316,4.10956777,80.119,80.071,4.16304183]
[1770990382323,4.10956777,80.119,80.082,11.2467]
[1770990382521,4.10956777,80.119,80.071,4.16304183]
[1770990383122,4.10956777,80.119,80.079,11.2473]
[1770990383824,4.10956777,80.131,80.08,4.16304183]
[1770990384529,11.2405,80.128,80.084,11.2465]
[1770990384726,4.10956777,80.131,80.08,4.16304183]
[1770990385125,4.10956777,80.145,80.08,4.16304183]
[1770990385524,9.63585311,80.16,80.066,4.16304183]
[1770990385525,4.10956777,80.128,80.066,4.16304183]
[1770990386428,11.2427,80.112,80.068,11.2487]
[1770990387028,4.10956777,80.114,80.066,4.16304183]
[1770990388027,15.35206777,80.114,80.073,11.2481]
[1770990388229,11.2425,80.114,80.074,4.16304183]
[1770990388931,11.241,80.124,80.084,15.40954183]
[1770990389133,4.10956777,80.119,80.061,4.16304183]
[1770990389331,11.2435,80.106,80.064,15.41234183]
[1770990389525,11.2435,80.106,80.065,4.16304183]
[1770990389923,3.59202915,80.1,80.051,4.16304183]
[1770990390124,3.59202915,80.08,80.031,4.16304183]
[1770990390324,4.10956777,80.079,80.002,37.41]
[1770990390526,3.59202915,80.03,79.98,3.59202915]
[1770990390727,3.59202915,80.05,79.991,4.36325772]
[1770990390927,37.41,80.115,79.953,277.31054795]
[1770990390928,4.21448709,80.072,80.001,4.36325772]
[1770990391127,4.21448709,80.072,80.013,4.36325772]
[1770990391737,9.63941298,80.09,80.033,4.36325772]
[1770990391738,11.2461,80.088,80.033,4.36325772]
[1770990392136,11.2472,80.08,80.033,4.36325772]
[1770990392332,4.21448709,80.107,80.033,4.36325772]
[1770990392931,11.242,80.117,80.059,4.36325772]
[1770990393137,4.21448709,80.123,80.059,4.36325772]
[1770990394838,174.7869,80.158,80.043,4.36325772]
[1770990394839,4.21448709,80.109,80.043,4.36325772]
[1770990395240,4.21448709,80.089,80.043,4.36325772]
[1770990395436,4.21448709,80.089,80.025,4.36325772]
[1770990395637,4.21448709,80.089,80.01,4.36325772]
[1770990395837,11.2517,80.048,79.999,11.2584]
[1770990396039,11.2517,80.048,80.0,4.36325772]
[1770990396642,4.21448709,80.06,80.0,4.36325772]
[1770990397146,4.27873014,80.049,79.975,4.10137158]
[1770990398546,11.2519,80.047,79.994,11.2592]
[1770990398746,4.27873014,80.049,79.995,4.10137158]
[1770990398947,4.27873014,80.049,79.979,4.10137158]
[1770990399847,11.254,80.032,79.979,4.10137158]
[1770990400241,4.27873014,80.029,79.964,2.17504078]
[1770990400440,4.27873014,80.029,79.96,4.10137158]
[1770990400843,22.4968,80.072,79.96,4.10137158]
[1770990400844,4.27873014,80.045,79.961,4.10137158]
[1770990401045,11.2526,80.042,79.986,4.10137158]
[1770990401244,4.27873014,80.045,79.986,4.10137158]
[1770990401446,4.27873014,80.039,79.969,4.10137158]
[1770990401646,4.27873014,80.01,79.955,4.10137158]
[1770990401947,4.27873014,80.029,79.955,4.10137158]
[1770990403051,4.27873014,80.029,79.957,4.10137158]
[1770990403544,11.2575,80.007,79.957,4.10137158]
[1770990403749,9.6511924,80.04,79.957,4.10137158]
[1770990403750,4.27873014,80.014,79.957,4.10137158]
[1770990404245,4.27873014,80.012,79.957,4.10137158]
[1770990405049,4.27873014,80.005,79.957,4.10137158]
[1770990406145,4.27873014,80.005,79.944,4.10137158]
[1770990406843,15.53813014,79.993,79.944,4.10137158]
[1770990407253,11.2601,79.989,79.944,4.10137158]
[1770990407556,4.27873014,79.988,79.932,11.2679]
[1770990408651,11.2621,79.974,79.928,4.10137158]
[1770990408843,15.54083014,79.974,79.928,4.10137158]
[1770990409652,15.54083014,79.974,79.929,11.2683]
[1770990409850,11.2605,79.986,79.93,4.10137158]
[1770990410155,4.27873014,79.985,79.93,4.10137158]
[1770990410544,11.2596,79.992,79.943,4.10137158]
[1770990410747,4.27873014,80.0,79.943,4.10137158]
[1770990411049,4.27873014,80.019,79.953,4.10137158]
[1770990412250,11.2561,80.017,79.966,4.10137158]
[1770990412849,11.2571,80.01,79.966,4.10137158]
[1770990413253,4.27873014,80.035,79.966,4.10137158]
[1770990413558,11.2537,80.034,79.986,11.2603]
[1770990413860,11.2537,80.034,79.987,4.10137158]
[1770990414256,11.2561,80.017,79.961,4.10137158]
[1770990414558,4.27873014,80.016,79.961,4.10137158]
[1770990414854,4.27873014,80.016,79.947,11.2658]
[1770990414855,11.2589,79.997,79.947,11.2658]
[1770990415052,4.27873014,80.016,79.948,4.10137158]
[1770990415257,4.27873014,80.032,79.951,4.10137158]
[1770990415457,11.2555,80.021,79.974,11.262]
[1770990415957,4.27873014,80.032,79.983,11.2608]
[1770990416258,4.27873014,80.032,79.982,4.10137158]
[1770990416653,11.252,80.046,79.982,4.10137158]
[1770990416860,4.27873014,80.045,79.982,4.10137158]
[1770990417655,11.2528,80.04,79.991,11.2596]
[1770990417957,4.27873014,80.04,79.968,4.10137158]
[1770990418658,4.27873014,80.04,79.971,4.10137158]
[1770990419361,11.2537,80.034,79.994,11.2591]
[1770990419558,4.27873014,80.04,79.994,11.2591]
[1770990420061,4.27873014,80.076,80.016,4.10137158]
[1770990420654,11.2479,80.075,80.016,4.10137158]
[1770990421062,4.27873014,80.076,80.016,4.10137158]
[1770990421464,15.52653014,80.076,80.029,11.2542]
[1770990421652,4.33916544,80.075,80.016,4.10137158]
[1770990421854,4.33916544,80.075,80.021,11.2554]
[1770990422055,4.33916544,80.092,80.022,4.18608702]
[1770990422268,4.33916544,80.092,80.031,4.18608702]
[1770990423358,4.33916544,80.083,80.035,11.2534]
[1770990423557,4.33916544,80.083,80.031,4.18608702]
[1770990424164,11.247,80.081,80.035,11.2534]
[1770990424466,4.33916544,80.083,80.031,4.18608702]
[1770990424762,4.33916544,80.083,80.014,4.18608702]
[1770990425656,4.33916544,80.073,80.019,11.2557]
[1770990425860,4.33916544,80.069,79.998,4.18608702]
[1770990426059,11.2525,80.043,79.993,11.2593]
[1770990426467,4.33916544,80.047,79.985,4.18608702]
[1770990426966,4.33916544,80.047,79.992,11.2594]
[1770990427468,4.33916544,80.047,79.993,4.18608702]
[1770990427659,4.33916544,80.047,80.006,11.2575]
[1770990427863,4.33916544,80.047,79.993,4.18608702]
[1770990428759,4.33916544,80.047,79.98,9.6511924]
[1770990428958,4.33916544,80.047,79.98,13.83727942]
[1770990429157,4.33916544,80.047,79.981,4.18608702]
[1770990429561,11.254,80.032,79.981,4.18608702]
[1770990430263,11.254,80.032,79.983,4.18608702]
[1770990430462,11.2527,80.041,79.983,4.18608702]
[1770990430863,4.33916544,80.065,79.999,4.18608702]
[1770990431062,11.2494,80.064,80.001,4.18608702]
[1770990431664,11.2504,80.057,80.01,11.2569]
[1770990431864,4.33916544,80.065,80.01,11.2569]
[1770990432063,4.33916544,80.065,80.001,4.18608702]
[1770990432263,4.33916544,80.042,79.983,15.44678702]
[1770990433070,11.2537,80.034,79.983,15.44678702]
[1770990433574,11.2537,80.034,79.99,11.2597]
[1770990434463,11.2537,80.034,79.983,4.18608702]
[1770990434772,11.2547,80.027,79.983,4.18608702]
[1770990435465,11.2547,80.027,79.985,11.2604]
[1770990435771,11.2536,80.034,79.983,4.18608702]
[1770990435968,11.2536,80.034,79.99,11.2597]
[1770990436366,11.2557,80.019,79.959,4.18608702]
[1770990436668,11.2557,80.019,79.97,4.18608702]
[1770990436858,4.33916544,80.033,79.97,4.18608702]
[1770990437372,4.33916544,80.033,79.986,11.2602]
[1770990437771,9.6511924,80.06,79.987,4.18608702]
[1770990437772,11.2518,80.048,79.987,4.18608702]
[1770990438072,4.33916544,80.049,79.987,4.18608702]
[1770990438869,4.33916544,80.049,79.97,4.18608702]
[1770990439069,4.33916544,80.049,79.98,11.2611]
[1770990439268,4.33916544,80.049,79.98,15.44718702]
[1770990439972,4.33916544,80.037,79.98,4.18608702]
[1770990442177,4.33916544,80.037,79.962,4.18608702]
[1770990442368,9.6511924,80.05,79.963,11.2636]
[1770990442369,11.2573,80.008,79.963,11.2636]
[1770990442676,4.33916544,80.015,79.964,4.18608702]
[1770990443370,11.2552,80.023,79.975,11.2619]
[1770990443575,11.2552,80.023,79.976,4.18608702]
[1770990443977,4.33916544,80.046,79.987,4.18608702]
[1770990444473,4.33916544,80.032,79.972,4.18608702]